{"text_format":"1","workbook":"xlsx","n_sheets":1,"sheets":["Tabelle1"],"not_rendered":{"charts":0,"images":0,"macros":0,"external_links":0,"defined_names":1,"comments":0,"pivot_tables":0},"unopened":[],"bounds":{"document_bytes":16777216,"sheet_cells":100000,"rows_first":2000,"rows_last":500,"rows_between":2000,"halvings":0,"cell_chars":16384,"cell_head_chars":4096},"cells_cut":0,"cells_raw":0,"read":"whole","date_system":"1900"}

{"sheet":"Tabelle1","index":0,"n_rows":35,"n_cols":12,"rows_kept":35,"cut":false,"hidden":false,"merged":[[4,8,4,9],[5,8,5,9]]}
["Bundeskongress des VDV 2024 in Bayreuth"]
[]
["Übernachtungen ",null,null,null,null,null,null,null,"Anzahl der Teilnehmer","Summe",null,"max"]
[]
["Einzelzimmer mit Frühstück ",null,null,null,null,"je Nacht",90,null,"im Hotel bezahlen",null,null,"50/70/60"]
["Doppelzimmer mit Frühstück ",null,null,null,null,"je Nacht",120,null,"Im Hotel bezahlen"]
[]
["Donnerstag, 16.05.2024"]
[null,"Come together",null,null,null,null,"Selbstzahler",null,0,{"$f":"I9*0","v":0},null,50]
[]
["Freitag, 17.05.2024"]
[null,"Eröffnungsveranstaltung",null,null,null,null,"kostenfrei",null,0,{"$f":"I12*0","v":0},null,120]
[null,"Mittagessen - Buffet",null,null,null,null,25,null,0,{"$f":"I13*G13","v":0},null,120]
[null,"Bundesvorstand (nichtöffentlich)",null,null,null,null,"kostenfrei",null,0,0,null,30]
[null,"Eremitage Bayreuth",null,null,null,null,25,null,0,{"$f":"I15*G15","v":0},null,50]
[null,"Wagner Festspielhaus",null,null,null,null,25,null,0,{"$f":"I16*G16","v":0},null,90]
[null,"Nachtwächterführung",null,null,null,null,25,null,0,0,null,25]
[null,"Katakomben Maisel",null,null,null,null,25,null,0,0,null,40]
[]
["Samstag, 18.05.2024"]
[null,"Fachvorträge ",null,null,null,null,"kostenfrei",null,0,{"$f":"I21*0","v":0},null,100]
[null,"Markgräfin Wilhelmine",null,null,null,null,15,null,0,0,null,25]
[null,"Frau des Türmers",null,null,null,null,15,null,0,0,null,25]
[null,"Werkstattführung Steingraeber",null,null,null,null,15,null,0,0,null,25]
[null,"Mittagessen - Buffet",null,null,null,null,25,null,0,0,null,100]
[null,"Bundesmitgliederversammlung VDV",null,null,null,null,"kostenfrei",null,0,{"$f":"I26*0","v":0},null,100]
[null,"Mitgliederversammlung BILDUNGSWERK VDV",null,null,null,null,"kostenfrei",null,0,{"$f":"I27*0","v":0},null,100]
[null,"Opernhaus",null,null,null,null,15,null,0,0,null,50]
[null,"Abendveranstaltung \"Lassen Sie sich überraschen\"",null,null,null,null,35,null,0,0,null,120]
[null,null,null,null,null,"Getränke:","Selbstzahler",null,0,{"$f":"I30*0","v":0}]
[]
["Sonntag, 19.05.2024"]
[null,"Führung Altstadt Bamberg",null,null,null,null,"Selbstzahler",null,0,{"$f":"I33*0","v":0},null,"---"]
[]
[null,null,null,null,null,null,"Zu überweisende Gesamtsumme:",null,null,{"$f":"SUM(J9:J34)","v":0}]